bitfinex-derivatives/quotes_BNBF0:USTF0_20250221
["timestamp","ask_amount","ask_price","bid_price","bid_amount"]
[1740151821459,2.28709038,658.15,655.15,0.3052736]
[1740151821661,1.306,658.24,655.15,0.3052736]
[1740151821963,4.26058052,658.23,655.15,0.3052736]
[1740151822265,4.25933463,658.22,655.15,2.1762736]
[1740151822460,5.08133518,658.21,655.15,2.1762736]
[1740151822654,4.25933463,658.2,655.15,2.1762736]
[1740151822862,5.08133518,658.19,655.15,2.1762736]
[1740151823159,4.25933463,658.18,655.15,2.1762736]
[1740151823361,1.306,658.24,655.15,2.1762736]
[1740151823362,7.54733684,658.17,655.15,2.1762736]
[1740151823554,4.25933463,658.16,655.15,2.1762736]
[1740151823764,4.25933463,658.15,655.15,2.1762736]
[1740151824054,5.08133518,658.14,655.15,2.1762736]
[1740151824260,4.25933463,658.13,655.15,2.1762736]
[1740151824560,4.25933463,658.12,655.15,2.1762736]
[1740151824754,4.25933463,658.11,655.15,2.1762736]
[1740151824958,4.25933463,658.1,655.15,2.1762736]
[1740151825160,5.08133518,658.09,655.15,2.1762736]
[1740151825357,4.25933463,658.08,655.15,2.1762736]
[1740151825563,5.08133518,658.07,655.15,2.1762736]
[1740151825761,4.25933463,658.06,655.15,2.1762736]
[1740151825961,7.54733684,658.05,655.15,2.1762736]
[1740151826161,4.25933463,658.04,655.15,2.1762736]
[1740151826360,4.25933463,658.03,655.15,2.1762736]
[1740151826565,4.25933463,658.02,655.15,2.1762736]
[1740151826757,4.25933463,658.01,655.15,2.1762736]
[1740151826958,5.08133518,658.0,655.15,2.1762736]
[1740151827259,4.25933463,657.99,655.15,2.1762736]
[1740151827465,4.25933463,657.98,655.15,2.1762736]
[1740151827658,4.25933463,657.97,655.15,2.1762736]
[1740151827963,7.54733684,657.96,655.15,2.1762736]
[1740151828164,4.25933463,657.95,655.15,2.1762736]
[1740151828363,5.08133518,657.94,655.15,2.1762736]
[1740151828560,4.25933463,657.93,655.15,2.1762736]
[1740151828760,4.25933463,657.92,655.15,2.1762736]
[1740151828962,4.25933463,657.91,655.15,2.1762736]
[1740151829164,4.25933463,657.9,655.15,2.1762736]
[1740151829365,4.25933463,657.89,655.15,2.1762736]
[1740151829564,5.08133518,657.88,655.15,2.1762736]
[1740151829760,4.25933463,657.87,655.15,2.1762736]
[1740151830064,5.08133518,657.86,655.15,2.1762736]
[1740151830266,4.25933463,657.85,655.15,2.1762736]
[1740151830466,4.25933463,657.84,655.15,2.1762736]
[1740151830766,1.06389924,657.83,655.15,2.1762736]
[1740151830959,1.88589979,657.82,655.15,2.1762736]
[1740151831165,1.06389924,657.81,655.15,2.1762736]
[1740151831361,1.88589979,657.8,655.15,2.1762736]
[1740151831566,4.24529334,657.79,655.15,2.1762736]
[1740151831764,4.24529334,657.78,655.15,2.1762736]
[1740151831965,4.24529334,657.77,655.15,2.1762736]
[1740151832163,1.06389924,657.76,655.15,2.1762736]
[1740151832364,1.88589979,657.75,655.15,2.1762736]
[1740151832563,1.06389924,657.74,655.15,2.1762736]
[1740151832864,1.88589979,657.73,655.15,2.1762736]
[1740151833065,1.06389924,657.72,655.15,2.1762736]
[1740151833267,1.06389924,657.71,655.15,2.1762736]
[1740151833461,4.24237496,657.7,655.15,2.1762736]
[1740151833662,4.24237496,657.69,655.15,2.1762736]
[1740151833860,4.24237496,657.68,655.15,2.1762736]
[1740151834060,4.24237496,657.67,655.15,2.1762736]
[1740151834365,1.06389924,657.66,655.15,2.1762736]
[1740151834562,1.06389924,657.65,655.15,2.1762736]
[1740151834759,1.06389924,657.64,655.15,2.1762736]
[1740151835065,1.06389924,657.63,655.15,2.1762736]
[1740151835262,1.06389924,657.62,655.15,2.1762736]
[1740151835460,1.06389924,657.61,655.15,2.1762736]
[1740151835665,1.88589979,657.6,655.15,2.1762736]
[1740151835861,1.06389924,657.59,655.15,2.1762736]
[1740151836065,1.05932521,657.58,655.15,2.1762736]
[1740151836262,1.05932521,657.57,655.15,2.1762736]
[1740151836468,1.88132576,657.56,655.15,2.1762736]
[1740151836667,1.05932521,657.55,655.15,2.1762736]
[1740151836867,1.05932521,657.54,655.15,2.1762736]
[1740151837065,1.05932521,657.53,655.15,2.1762736]
[1740151837261,1.88132576,657.52,655.15,2.1762736]
[1740151837565,1.05932521,657.51,655.15,2.1762736]
[1740151837765,1.05932521,657.5,655.15,2.1762736]
[1740151837965,1.05932521,657.49,655.15,2.1762736]
[1740151838168,1.05932521,657.48,655.15,2.1762736]
[1740151838369,1.05932521,657.47,655.15,2.1762736]
[1740151838569,1.05932521,657.46,655.15,2.1762736]
[1740151838770,1.05932521,657.45,655.15,2.1762736]
[1740151838972,1.05932521,657.44,655.15,2.1762736]
[1740151839271,1.05932521,657.43,655.15,2.1762736]
[1740151839473,1.88132576,657.42,655.15,2.1762736]
[1740151839770,1.05932521,657.41,655.15,2.1762736]
[1740151839966,1.88132576,657.4,655.15,2.1762736]
[1740151840167,1.05932521,657.39,655.15,2.1762736]
[1740151840373,1.88132576,657.38,655.15,2.1762736]
[1740151840572,1.05932521,657.37,655.15,2.1762736]
[1740151840873,1.88132576,657.36,655.15,2.1762736]
[1740151841073,1.05932521,657.35,655.15,2.1762736]
[1740151841268,1.05932521,657.34,655.15,2.1762736]
[1740151841573,1.05932521,657.33,655.15,2.1762736]
[1740151841772,1.05932521,657.32,655.15,2.1762736]
[1740151842072,1.05932521,657.31,655.28,2.28420995]
[1740151842272,1.05932521,657.3,655.28,2.28420995]
[1740151842470,1.05932521,657.29,655.28,2.28420995]
[1740151842673,0.82200055,657.3,655.38,0.30516646]
[1740151842973,1.36,657.65,655.38,0.30516646]
[1740151843176,1.05870189,657.64,655.38,0.30516646]
[1740151843366,1.05870189,657.63,655.38,0.30516646]
[1740151843571,1.05870189,657.62,655.38,0.30516646]
[1740151843771,1.05870189,657.61,655.38,0.30516646]
[1740151843971,1.86849157,657.6,655.38,0.30516646]
[1740151844174,1.05870189,657.59,655.38,0.30516646]
[1740151844477,1.86849157,657.58,655.54,2.28420995]
[1740151844670,1.05870189,657.57,655.54,2.28420995]
[1740151844870,1.05870189,657.56,655.54,2.28420995]
[1740151845076,1.05870189,657.55,655.54,2.28420995]
[1740151845376,1.86886143,657.54,655.54,2.28420995]
[1740151845577,1.05907175,657.53,655.54,2.28420995]
[1740151845776,1.05907175,657.52,655.54,2.28420995]
[1740151845978,1.05907175,657.51,655.54,2.28420995]
[1740151846276,1.05907175,657.5,655.54,2.28420995]
[1740151846477,1.05907175,657.5,655.38,0.30516646]
[1740151846478,1.05907175,657.49,655.38,0.30516646]
[1740151846674,1.05907175,657.48,655.38,0.30516646]
[1740151846875,1.05907175,657.47,655.38,0.30516646]
[1740151847076,1.05907175,657.46,655.38,0.30516646]
[1740151847277,1.05907175,657.45,655.38,0.30516646]
[1740151847576,1.05907175,657.44,655.38,0.30516646]
[1740151847778,1.05907175,657.43,655.38,0.30516646]
[1740151847976,1.05907175,657.42,655.38,0.30516646]
[1740151848272,1.86906052,657.41,655.38,0.30516646]
[1740151848478,1.05907175,657.4,655.38,0.30516646]
[1740151848671,1.05907175,657.39,655.38,0.30516646]
[1740151848871,1.05907175,657.38,655.38,0.30516646]
[1740151849076,1.05907175,657.37,655.38,0.30516646]
[1740151849276,1.05973324,657.36,655.38,0.30516646]
[1740151849478,1.05973324,657.35,655.38,0.30516646]
[1740151849680,1.05973324,657.34,655.38,0.30516646]
[1740151849881,1.05973324,657.33,655.38,0.30516646]
[1740151850077,1.05973324,657.32,655.38,0.30516646]
[1740151850283,2.83428638,657.31,655.38,0.30516646]
[1740151850482,2.83428638,657.3,655.8,2.28420995]
[1740151850682,2.83428638,657.29,655.8,2.28420995]
[1740151850982,2.83428638,657.28,655.82,0.30496172]
[1740151851185,2.83428638,657.27,655.82,0.30496172]
[1740151851377,2.83428638,657.26,655.82,0.30496172]
[1740151851581,2.83428638,657.25,655.82,0.30496172]
[1740151851778,2.18520122,657.26,655.82,0.30496172]
[1740151851978,1.10942506,657.98,655.82,0.30496172]
[1740151852183,2.86643349,657.97,655.82,0.30496172]
[1740151852384,1.45138895,657.28,655.82,0.30496172]
[1740151852781,1.45138895,657.26,655.82,0.30496172]
[1740151852985,1.45138895,657.3,655.82,0.30496172]
[1740151853487,1.45138895,657.42,655.82,0.30496172]
[1740151853685,1.45138895,657.43,655.82,0.30496172]
[1740151853880,1.45138895,657.47,655.82,0.30496172]
[1740151854085,1.45138895,657.48,655.82,0.30496172]
[1740151854282,1.45138895,657.49,655.82,0.30496172]
[1740151854887,1.45138895,657.48,655.82,0.30496172]
[1740151855088,1.45138895,657.45,655.82,0.30496172]
[1740151855389,1.45138895,657.39,655.82,0.30496172]
[1740151855583,1.45138895,657.39,655.85,2.28420995]
[1740151855782,1.45138895,657.35,655.87,0.30493847]
[1740151855987,1.45138895,657.22,655.87,0.30493847]
[1740151856490,1.45138895,657.25,655.87,0.30493847]
[1740151856693,1.45782588,657.24,655.87,0.30493847]
[1740151856988,1.45782588,657.26,655.87,0.30493847]
[1740151857185,1.45782588,657.22,655.87,0.30493847]
[1740151857391,1.45782588,657.24,655.87,0.30493847]
[1740151857586,1.45782588,657.25,655.87,0.30493847]
[1740151857896,1.45782588,657.34,655.97,2.28420995]
[1740151858189,1.45782588,657.33,655.97,2.28420995]
[1740151858389,3.29382588,657.33,655.97,2.28420995]
[1740151858590,1.836,657.33,655.99,0.30488269]
[1740151859289,3.29382588,657.33,655.99,0.30488269]
[1740151859483,3.29382588,657.33,656.16,2.28420995]
[1740151859682,1.45782588,657.32,656.18,0.30479441]
[1740151859886,1.836,657.33,656.18,0.30479441]
[1740151860289,3.29382588,657.33,656.18,0.30479441]
[1740151860488,1.45782588,657.24,656.18,0.30479441]
[1740151860690,1.45782588,657.18,656.18,0.30479441]
[1740151860890,1.45782588,657.14,656.18,0.30479441]
[1740151861087,1.45782588,657.13,656.18,0.30479441]
[1740151861282,2.92045774,657.16,656.18,0.30479441]
[1740151861488,2.92045774,657.14,656.18,0.30479441]
[1740151861691,2.92560711,657.14,656.18,0.30479441]
[1740151861891,1.46263186,657.14,656.18,0.30479441]
[1740151862189,1.46297525,657.09,656.22,2.28420995]
[1740151862390,1.46297525,657.06,656.24,0.30476654]
[1740151862591,2.92560711,657.16,656.24,0.30476654]
[1740151862790,1.46263186,657.11,656.24,0.30476654]
[1740151863292,1.46297525,657.27,656.26,2.28420995]
[1740151863488,1.46297525,657.28,656.28,0.30474797]
[1740151863684,1.46263186,657.29,656.28,0.30474797]
[1740151863685,1.46297525,657.19,656.28,0.30474797]
[1740151863887,1.46297525,657.13,656.28,0.30474797]
[1740151864091,1.46297525,656.99,656.28,0.30474797]
[1740151864286,1.46297525,656.94,656.28,0.30474797]
[1740151864492,1.46297525,656.92,656.28,0.30474797]
[1740151864692,1.46297525,656.9,656.28,0.30474797]
[1740151864892,1.46297525,656.88,656.28,0.30474797]
[1740151865189,1.46297525,656.81,656.28,0.30474797]
[1740151865489,1.46297525,656.61,656.28,0.30474797]
[1740151865686,1.46297525,656.58,656.28,0.30474797]
[1740151866190,1.46297525,656.55,656.28,0.30474797]
[1740151866388,1.46297525,656.53,656.28,0.30474797]
[1740151866591,1.46297525,656.5,656.28,0.30474797]
[1740151866795,1.46297525,656.49,656.28,0.30474797]
[1740151867294,1.46297525,656.51,656.28,0.30474797]
[1740151867494,1.46263186,656.5,656.28,0.30474797]
[1740151868395,1.46263186,656.63,656.28,0.30474797]
[1740151869090,1.46297525,656.59,656.28,0.30474797]
[1740151869295,1.46297525,656.6,656.28,0.30474797]
[1740151869495,1.46263186,656.59,656.28,0.30474797]
[1740151870197,1.46297525,656.71,656.28,0.30474797]
[1740151870595,1.46297525,656.67,656.28,0.30474797]
[1740151870795,1.46297525,656.62,656.28,0.30474797]
[1740151871098,1.46297525,656.59,656.28,0.30474797]
[1740151871298,1.46297525,656.55,656.28,0.30474797]
[1740151871498,1.46297525,656.52,656.28,0.30474797]
[1740151871799,2.92560711,656.51,656.28,0.30474797]
[1740151871990,1.46263186,656.51,656.28,0.30474797]
[1740151872395,1.46263186,656.53,656.28,0.30474797]
[1740151872993,1.46297525,656.57,656.28,0.30474797]
[1740151873196,1.46263186,656.58,656.28,0.30474797]
[1740151873399,1.46297525,656.64,656.28,0.30474797]
[1740151873400,1.46297525,656.63,656.28,0.30474797]
[1740151873595,1.46297525,656.59,656.28,0.30474797]
[1740151873998,2.92560711,656.6,656.28,0.30474797]
[1740151874294,1.46263186,656.6,656.28,0.30474797]
[1740151874800,1.46297525,656.51,656.28,0.30474797]
[1740151875100,1.46297525,656.52,656.28,0.30474797]
[1740151875400,1.46263186,656.51,656.28,0.30474797]
[1740151875600,1.46297525,656.48,656.28,0.30474797]
[1740151876099,2.92560711,656.52,656.28,0.30474797]
[1740151876295,1.46263186,656.49,656.28,0.30474797]
[1740151876898,1.46263186,656.52,656.28,0.30474797]
[1740151877298,1.46297525,656.49,656.28,0.30474797]
[1740151877694,1.46297525,656.51,656.28,0.30474797]
[1740151877896,1.46297525,656.5,656.28,0.30474797]
[1740151878201,1.46755687,656.46,656.28,0.30474797]
[1740151878405,1.46755687,656.42,656.28,0.30474797]
[1740151878604,1.46755687,656.37,656.28,0.30474797]
[1740151878902,1.46755687,656.34,654.4,2.28420995]
[1740151879100,1.46755687,656.34,654.42,0.30561413]
[1740151879298,2.93018873,656.34,654.42,0.30561413]
[1740151879797,1.46755687,656.33,654.42,0.30561413]
[1740151880002,1.46579178,656.33,654.69,2.28420995]
[1740151880301,2.92842364,656.33,654.71,0.30547876]
[1740151880499,1.46263186,656.33,654.71,0.30547876]
[1740151881501,1.46579178,656.34,654.74,2.28420995]
[1740151881699,1.46579178,656.34,654.76,0.30545543]
[1740151881904,1.46579178,656.32,654.76,0.30545543]
[1740151882103,1.46263186,656.35,654.76,0.30545543]
[1740151882104,1.46579178,656.34,654.76,0.30545543]
[1740151882302,2.92842364,656.34,654.76,0.30545543]
[1740151882502,1.46579178,656.33,654.76,0.30545543]
[1740151882701,1.46263186,656.34,654.76,0.30545543]
[1740151882902,2.92842364,656.42,654.76,0.30545543]
[1740151883104,1.46263186,656.42,654.76,0.30545543]
[1740151883502,1.46263186,656.47,654.76,0.30545543]
[1740151883902,1.46263186,656.52,654.76,0.30545543]
[1740151884103,2.92625181,656.52,654.76,0.30545543]
[1740151884300,1.46263186,656.52,654.76,0.30545543]
[1740151884704,1.46361995,656.53,654.77,1.496]
[1740151884905,1.46361995,656.51,654.77,1.496]
[1740151885305,2.92625181,656.52,654.77,1.496]
[1740151885505,1.46263186,656.52,654.77,1.496]
[1740151885702,1.46263186,656.52,654.79,0.30544143]
[1740151885909,2.92625181,656.52,654.79,0.30544143]
[1740151886108,1.46361995,656.51,654.79,0.30544143]
[1740151886304,1.46263186,656.52,654.79,0.30544143]
[1740151886707,1.46263186,656.63,654.79,0.30544143]
[1740151887410,1.46263186,656.7,654.79,0.30544143]
[1740151888209,1.46329121,656.68,654.79,0.30544143]
[1740151888405,1.46329121,656.66,654.79,0.30544143]
[1740151888711,1.46329121,656.72,654.79,0.30544143]
[1740151888911,1.46263186,656.66,654.79,0.30544143]
[1740151889111,1.46263186,656.66,654.89,2.28420995]
[1740151889311,1.46263186,656.66,654.91,0.30538547]
[1740151889709,1.46329121,656.76,654.91,0.30538547]
[1740151889911,1.46329121,656.74,654.91,0.30538547]
[1740151890111,1.46329121,656.75,654.91,0.30538547]
[1740151890414,1.46329121,656.64,654.91,0.30538547]
[1740151890608,1.46329121,656.62,654.91,0.30538547]
[1740151890815,1.46329121,656.61,654.91,0.30538547]
[1740151891009,1.46263186,656.63,654.91,0.30538547]
[1740151891412,1.46313001,656.6,654.91,0.30538547]
[1740151891613,1.46263186,656.64,654.91,0.30538547]
[1740151891814,1.46313001,656.62,654.91,0.30538547]
[1740151892014,1.46313001,656.63,654.91,0.30538547]
[1740151892215,1.46313001,656.6,654.91,0.30538547]
[1740151892419,1.46313001,656.56,654.91,0.30538547]
[1740151892915,1.46313001,656.51,654.91,0.30538547]
[1740151893115,1.46313001,656.52,654.91,0.30538547]
[1740151893315,1.46263186,656.52,654.91,0.30538547]
[1740151893515,2.92576187,656.54,654.91,0.30538547]
[1740151893715,1.46313001,656.53,654.91,0.30538547]
[1740151893917,2.92576187,656.53,654.91,0.30538547]
[1740151894517,1.46263186,656.53,654.91,0.30538547]
[1740151894718,1.46313001,656.53,654.91,0.30538547]
[1740151894915,1.46313001,656.49,655.37,2.28420995]
[1740151895119,1.46313001,656.51,655.39,0.30516181]
[1740151895320,1.46263186,656.51,655.39,0.30516181]
[1740151895917,1.46313001,656.55,655.39,0.30516181]
[1740151896221,1.46212232,656.51,655.39,0.30516181]
[1740151896415,1.46212232,656.48,655.39,0.30516181]
[1740151896712,1.46212232,656.49,655.39,0.30516181]
[1740151897119,2.92475418,656.49,655.39,0.30516181]
[1740151897718,1.46212232,656.48,655.39,0.30516181]
[1740151897920,1.46263186,656.48,655.39,0.30516181]
[1740151898120,1.46212232,656.51,655.39,0.30516181]
[1740151898317,1.46031474,656.47,655.39,0.30516181]
[1740151898517,1.46031474,656.44,655.39,0.30516181]
[1740151898717,1.46031474,656.43,655.39,0.30516181]
[1740151898914,2.9229466,656.43,655.39,0.30516181]
[1740151899118,1.46263186,656.43,655.39,0.30516181]
[1740151899421,1.46031474,656.43,655.39,0.30516181]
[1740151899616,2.9229466,656.43,655.39,0.30516181]
[1740151899820,1.46031474,656.41,655.39,0.30516181]
[1740151900018,1.46031474,656.42,655.39,0.30516181]
[1740151900317,1.46263186,656.42,655.39,0.30516181]
[1740151900922,1.46263186,656.43,655.39,0.30516181]
[1740151901817,1.46031474,656.45,655.39,0.30516181]
[1740151902016,1.46031474,656.44,655.39,0.30516181]
[1740151902218,2.9229466,656.45,655.39,0.30516181]
[1740151902822,1.46263186,656.45,655.39,0.30516181]
[1740151903320,1.46263186,656.45,655.54,2.28420995]
[1740151903523,1.46263186,656.47,655.56,0.30508267]
[1740151903921,1.46031474,656.49,655.56,0.30508267]
[1740151903922,1.46263186,656.49,655.56,0.30508267]
[1740151904427,2.9229466,656.49,655.56,0.30508267]
[1740151904728,1.46031474,656.44,655.56,0.30508267]
[1740151904926,1.46031474,656.45,655.56,0.30508267]
[1740151905129,1.46031474,656.44,655.56,0.30508267]
[1740151905422,1.46031474,656.45,655.61,2.28420995]
[1740151905628,1.46031474,656.44,655.63,0.3050501]
[1740151905928,1.46263186,656.45,655.63,0.3050501]
[1740151906130,2.9229466,656.45,655.63,0.3050501]
[1740151906431,1.46263186,656.45,655.63,0.3050501]
[1740151906923,2.9229466,656.46,655.63,0.3050501]
[1740151907128,1.46263186,656.46,655.63,0.3050501]
[1740151907332,1.46263186,656.47,655.63,0.3050501]
[1740151908433,1.46031474,656.63,655.63,0.3050501]
[1740151908630,1.46031474,656.65,655.63,0.3050501]
[1740151909032,1.46031474,656.64,655.63,0.3050501]
[1740151909331,1.46263186,656.65,655.63,0.3050501]
[1740151909531,1.46263186,656.66,655.63,0.3050501]
[1740151910125,1.4630848,656.7,655.63,0.3050501]
[1740151910329,1.46263186,656.71,655.63,0.3050501]
[1740151910630,1.46263186,656.72,655.63,0.3050501]
[1740151911231,1.46263186,656.72,655.64,2.28420995]
[1740151911426,1.4630848,656.75,655.66,0.30503614]
[1740151911631,1.4630848,656.74,655.66,0.30503614]
[1740151911826,1.4630848,656.73,655.66,0.30503614]
[1740151912237,1.46263186,656.74,655.66,0.30503614]
[1740151912630,1.327,656.77,655.66,0.30503614]
[1740151913235,2.7900848,656.77,655.66,0.30503614]
[1740151913438,1.4630848,656.75,655.66,0.30503614]
[1740151913735,1.46263186,656.74,655.66,0.30503614]
[1740151913935,2.92571666,656.74,655.66,0.30503614]
[1740151914136,1.4630848,656.72,655.66,0.30503614]
[1740151914340,1.4630848,656.65,655.66,0.30503614]
[1740151914638,1.4630848,656.41,655.88,2.28420995]
[1740151914935,1.4630848,656.38,655.88,2.28420995]
[1740151915133,3.82359296,656.4,655.88,2.28420995]
[1740151915134,1.4630848,656.39,655.88,2.28420995]
[1740151915331,1.46712201,656.36,655.88,2.28420995]
[1740151915833,1.46712201,656.38,655.89,0.30492918]
[1740151916037,1.46263186,656.37,655.89,0.30492918]
[1740151916435,1.46712201,656.17,655.89,0.30492918]
[1740151916736,1.46712201,656.18,655.89,0.30492918]
[1740151916937,1.46722441,656.17,655.89,0.30492918]
[1740151917131,1.46722441,656.12,655.89,0.30492918]
[1740151917335,1.46722441,656.09,655.89,0.30492918]
[1740151917634,1.46263186,656.08,655.89,0.30492918]
[1740151917837,1.46722441,656.07,655.89,0.30492918]
[1740151918036,1.46722441,656.08,655.89,0.30492918]
[1740151918437,1.46722441,656.04,655.89,0.30492918]
[1740151918638,1.46722441,656.03,655.89,0.30492918]
[1740151918937,5.2953716,656.02,655.89,0.30492918]
[1740151919137,2.34860605,655.95,655.89,0.30492918]
[1740151919338,2.34860605,655.96,655.89,0.30492918]
[1740151919632,2.34860605,655.95,655.89,0.30492918]
[1740151919837,1.46784663,655.96,655.89,0.30492918]
[1740151920033,1.46789353,655.95,655.89,0.30492918]
[1740151920230,1.46784663,655.95,655.89,0.30492918]
[1740151920842,1.46784663,655.99,655.89,0.30492918]
[1740151921037,1.46789353,655.97,655.89,0.30492918]
[1740151921267,1.46784663,655.99,655.89,0.30492918]
[1740151921436,1.46784663,655.97,654.93,2.28420995]
[1740151921636,1.46784663,655.97,654.95,0.30536682]
[1740151922239,1.46784663,656.13,654.95,0.30536682]
[1740151922540,1.46784663,656.3,654.95,0.30536682]
[1740151922736,1.46784663,656.3,655.19,2.28420995]
[1740151922936,1.46784663,656.36,655.19,2.28420995]
[1740151923538,2.93921158,656.48,655.19,2.28420995]
[1740151923741,1.46784663,656.48,655.21,0.30524564]
[1740151924039,1.46784663,656.57,655.21,0.30524564]
[1740151924837,1.46784663,656.71,655.21,0.30524564]
[1740151925041,5.30963069,656.7,655.47,2.28420995]
[1740151925241,1.47136495,656.63,655.49,0.30511525]
[1740151925539,1.47136495,656.57,655.49,0.30511525]
[1740151925740,1.47136495,656.54,655.49,0.30511525]
[1740151925942,1.47136495,656.55,655.49,0.30511525]
[1740151926240,1.47136495,656.52,655.49,0.30511525]
[1740151926438,2.93921158,656.52,655.49,0.30511525]
[1740151926638,1.47136495,656.45,655.49,0.30511525]
[1740151926839,1.47136495,656.43,655.68,2.28420995]
[1740151927036,1.47136495,656.34,655.68,2.28420995]
[1740151927241,1.47136495,656.32,655.68,2.28420995]
[1740151927541,1.47136495,656.28,655.69,0.30502219]
[1740151928041,2.93921158,656.28,655.69,0.30502219]
[1740151928239,1.46784663,656.28,655.69,0.30502219]
[1740151928740,3.83618439,656.27,655.69,0.30502219]
[1740151928933,1.47136495,656.17,655.69,0.30502219]
[1740151929138,1.47136495,656.1,655.69,0.30502219]
[1740151929443,1.47136495,656.04,655.69,0.30502219]
[1740151929640,1.47136495,656.0,655.69,0.30502219]
[1740151929836,1.47136495,655.96,655.69,0.30502219]
[1740151930038,1.47136495,655.91,655.69,0.30502219]
[1740151930234,1.47136495,655.9,655.69,0.30502219]
[1740151930435,1.46784663,655.89,655.69,0.30502219]
[1740151931043,1.46784663,655.91,655.69,0.30502219]
[1740151931739,1.46784663,656.08,655.69,0.30502219]
[1740151932338,1.46784663,656.27,655.69,0.30502219]
[1740151933242,1.46942947,656.21,655.69,0.30502219]
[1740151933445,1.46942947,656.25,655.69,0.30502219]
[1740151933640,1.46784663,656.25,655.69,0.30502219]
[1740151934946,2.93736151,656.34,655.69,0.30502219]
[1740151935144,1.46784663,656.34,655.69,0.30502219]
[1740151935342,1.46784663,656.41,655.69,0.30502219]
[1740151935646,1.46951488,656.27,655.69,0.30502219]
[1740151935858,1.46951488,656.23,655.69,0.30502219]
[1740151936041,1.46951488,656.25,655.69,0.30502219]
[1740151936247,1.46784663,656.26,655.69,0.30502219]
[1740151936648,1.46951488,656.27,655.69,0.30502219]
[1740151936849,1.46951488,656.26,655.69,0.30502219]
[1740151937046,1.46951488,656.22,655.69,0.30502219]
[1740151937245,2.93736151,656.24,655.69,0.30502219]
[1740151937445,1.46784663,656.24,655.69,0.30502219]
[1740151937856,1.46784663,656.25,655.69,0.30502219]
[1740151938054,1.46951488,656.24,655.69,0.30502219]
[1740151938249,2.93736151,656.25,655.69,0.30502219]
[1740151938449,1.46784663,656.25,655.69,0.30502219]
[1740151938661,1.46951488,656.29,655.69,0.30502219]
[1740151938849,1.46951488,656.28,655.69,0.30502219]
[1740151939052,1.46951488,656.25,655.69,0.30502219]
[1740151939557,1.46951488,656.2,655.69,0.30502219]
[1740151939755,1.46951488,656.15,655.69,0.30502219]
[1740151939951,1.46841167,656.1,655.69,0.30502219]
[1740151940251,2.9362583,656.1,655.69,0.30502219]
[1740151940453,1.46784663,656.1,655.69,0.30502219]
[1740151940654,2.9362583,656.1,655.69,0.30502219]
[1740151940854,1.46841167,656.03,655.69,0.30502219]
[1740151941051,1.46841167,656.02,655.69,0.30502219]
[1740151941255,1.46841167,656.05,655.69,0.30502219]
[1740151941458,1.46784663,656.04,655.69,0.30502219]
[1740151942554,1.46784663,656.06,655.69,0.30502219]
[1740151943152,2.9354362,656.11,655.69,0.30502219]
[1740151943355,1.46784663,656.11,655.69,0.30502219]
[1740151943558,2.93518335,656.13,655.69,0.30502219]
[1740151943860,1.46784663,656.13,655.69,0.30502219]
[1740151944355,1.46733672,656.18,655.69,0.30502219]
[1740151944559,1.46733672,656.17,655.69,0.30502219]
[1740151944764,1.46733672,656.14,655.69,0.30502219]
[1740151944954,1.46733672,656.12,655.69,0.30502219]
[1740151945159,1.46733672,656.13,655.69,0.30502219]
[1740151945559,1.46733672,656.12,655.69,0.30502219]
[1740151946063,1.46784663,656.13,655.69,0.30502219]
[1740151946459,1.46784663,656.14,655.69,0.30502219]
[1740151946960,1.46784663,656.2,655.69,0.30502219]
[1740151947662,2.93518335,656.36,655.69,0.30502219]
[1740151947859,1.46733672,656.33,655.69,0.30502219]
[1740151948064,1.46733672,656.28,655.69,0.30502219]
[1740151948267,1.46733672,656.24,655.69,0.30502219]
[1740151948465,1.46733672,656.26,655.69,0.30502219]
[1740151948667,1.46733672,656.27,655.69,0.30502219]
[1740151948868,1.46733672,656.22,655.69,0.30502219]
[1740151949058,1.46733672,656.21,655.69,0.30502219]
[1740151949262,1.46733672,656.22,655.69,0.30502219]
[1740151949765,1.46733672,656.21,655.69,0.30502219]
[1740151950059,1.46784663,656.22,655.69,0.30502219]
[1740151950263,1.46784663,656.23,655.69,0.30502219]
[1740151951161,2.93518335,656.34,655.69,0.30502219]
[1740151951563,1.46784663,656.34,655.7,1.393]
[1740151951763,1.46784663,656.34,655.71,0.30501288]
[1740151952172,1.46733672,656.34,655.71,0.30501288]
[1740151952565,2.93518335,656.35,655.71,0.30501288]
[1740151952962,1.46733672,656.3,655.71,0.30501288]
[1740151953568,1.46733672,656.31,655.71,0.30501288]
[1740151953767,1.46784663,656.31,655.71,0.30501288]
[1740151954370,1.46784663,656.32,655.71,0.30501288]
[1740151954862,2.071,656.85,655.71,0.30501288]
[1740151954863,1.46784663,656.35,655.71,0.30501288]
[1740151955465,2.93518335,656.35,655.71,0.30501288]
[1740151955668,1.46784663,656.36,655.71,0.30501288]
[1740151956275,1.46733672,656.36,655.71,0.30501288]
[1740151956569,1.46960934,656.3,655.71,0.30501288]
[1740151956769,1.46960934,656.25,655.71,0.30501288]
[1740151956976,1.46784663,656.23,655.71,0.30501288]
[1740151957375,1.46960934,656.26,655.71,0.30501288]
[1740151957576,1.46784663,656.27,655.71,0.30501288]
[1740151958080,1.46784663,656.32,655.71,0.30501288]
[1740151958275,1.46960934,656.35,655.71,0.30501288]
[1740151958482,1.46960934,656.38,655.71,0.30501288]